fUST/lending_fUST_20250617
["ID","MTS","AMOUNT","RATE_DAILY","PERIOD"]
[366265281,1750165854297,-153.0,0.00024223,2]
[366265282,1750165854306,-153.0,0.00024223,2]
[366265283,1750165854315,-153.0,0.00024223,2]
[366265284,1750165854324,-153.0,0.00024223,2]
[366265285,1750165854334,-153.0,0.00024223,2]
[366265286,1750165854343,-153.0,0.00024223,2]
[366265287,1750165854352,-153.0,0.00024223,2]
[366265288,1750165854361,-3000.0,0.0002423,2]
[366265289,1750165854371,-151.0,0.00024236,7]
[366265290,1750165854380,-151.98293,0.00024236,7]
[366265291,1750165854390,-228.18172,0.00024236,7]
[366265292,1750165854400,-151.0,0.00024236,7]
[366265293,1750165854411,-151.907426,0.00024236,7]
[366265294,1750165854420,-151.0,0.00024236,7]
[366265295,1750165854429,-159.481499,0.00024236,7]
[366265296,1750165854439,-151.0,0.00024236,7]
[366265297,1750165854448,-151.0,0.00024236,7]
[366265298,1750165854457,-151.0,0.00024236,7]
[366265299,1750165854466,-151.0,0.00024236,7]
[366265300,1750165854475,-1747.0,0.00024236,3]
[366265301,1750165854485,-151.0,0.00024236,3]
[366265302,1750165854494,-171.0,0.00024236,3]
[366265303,1750165854503,-1747.0,0.00024236,3]
[366265304,1750165854607,-171.0,0.00024236,3]
[366265305,1750165854617,-1747.0,0.00024236,3]
[366265306,1750165854626,-271.03904922,0.00024236,3]
[366265307,1750165854636,-151.0,0.00024236,3]
[366265308,1750165854645,-1747.0,0.00024236,3]
[366265309,1750165854656,-166.5555692,0.00024236,3]
[366265310,1750165854666,-1747.0,0.00024236,3]
[366265311,1750165854675,-1747.0,0.00024236,3]
[366265312,1750165854685,-1747.0,0.00024236,3]
[366265313,1750165854695,-1747.0,0.00024236,3]
[366265314,1750165854704,-1747.0,0.00024236,3]
[366265315,1750165854714,-1747.0,0.00024236,3]
[366265316,1750165854723,-1747.0,0.00024236,3]
[366265317,1750165854733,-1747.0,0.00024236,3]
[366265318,1750165854743,-1747.0,0.00024236,3]
[366265319,1750165854752,-156.01367261,0.00024236,3]
[366265320,1750165854762,-1747.0,0.00024236,3]
[366265321,1750165854771,-1747.0,0.00024236,3]
[366265322,1750165854781,-1747.0,0.00024236,3]
[366265323,1750165854791,-1747.0,0.00024236,3]
[366265324,1750165854800,-1747.0,0.00024236,3]
[366265325,1750165854811,-1747.0,0.00024236,3]
[366265326,1750165854820,-1747.0,0.00024236,3]
[366265327,1750165854829,-1747.0,0.00024236,3]
[366265328,1750165854841,-1747.0,0.00024236,3]
[366265329,1750165854850,-1747.0,0.00024236,3]
[366265330,1750165854859,-1747.0,0.00024236,3]
[366265331,1750165854868,-1747.0,0.00024236,3]
[366265332,1750165854877,-1747.0,0.00024236,3]
[366265333,1750165854888,-1747.0,0.00024236,3]
[366265334,1750165854898,-1747.0,0.00024236,3]
[366265335,1750165854907,-1747.0,0.00024236,3]
[366265336,1750165854916,-1747.0,0.00024236,3]
[366265337,1750165854926,-1747.0,0.00024236,3]
[366265338,1750165854935,-1747.0,0.00024236,3]
[366265339,1750165854944,-317.0,0.00024236,3]
[366265340,1750165854954,-1747.0,0.00024236,3]
[366265341,1750165854963,-317.0,0.00024236,3]
[366265342,1750165854973,-1747.0,0.00024236,3]
[366265343,1750165854989,-317.0,0.00024236,3]
[366265344,1750165854998,-1747.0,0.00024236,3]
[366265345,1750165855008,-317.0,0.00024236,3]
[366265346,1750165855017,-1747.0,0.00024236,3]
[366265347,1750165855027,-317.0,0.00024236,3]
[366265348,1750165855036,-1747.0,0.00024236,3]
[366265349,1750165855046,-317.0,0.00024236,3]
[366265350,1750165855055,-1747.0,0.00024236,3]
[366265351,1750165855064,-317.0,0.00024236,3]
[366265352,1750165855073,-1747.0,0.00024236,3]
[366265353,1750165855082,-317.0,0.00024236,3]
[366265354,1750165855092,-1747.0,0.00024236,3]
[366265355,1750165855101,-317.0,0.00024236,3]
[366265356,1750165855110,-1747.0,0.00024236,3]
[366265357,1750165855119,-1747.0,0.00024236,3]
[366265358,1750165855129,-317.0,0.00024236,3]
[366265359,1750165855138,-1747.0,0.00024236,3]
[366265360,1750165855147,-317.0,0.00024236,3]
[366265361,1750165855157,-1747.0,0.00024236,3]
[366265362,1750165855166,-317.0,0.00024236,3]
[366265363,1750165855175,-317.0,0.00024236,3]
[366265364,1750165855184,-317.0,0.00024236,3]
[366265365,1750165855193,-1747.0,0.00024236,3]
[366265366,1750165855202,-317.0,0.00024236,3]
[366265367,1750165855212,-918.1030757,0.00024236,3]
[366265368,1750165855221,-317.0,0.00024236,3]
[366265369,1750165855230,-317.0,0.00024236,3]
[366265370,1750165855239,-317.0,0.00024236,3]
[366265371,1750165855249,-317.0,0.00024236,3]
[366265372,1750165855258,-317.0,0.00024236,3]
[366265373,1750165855267,-317.0,0.00024236,3]
[366265374,1750165855276,-317.0,0.00024236,3]
[366265375,1750165855285,-317.0,0.00024236,3]
[366265376,1750165855295,-317.0,0.00024236,3]
[366265377,1750165855304,-466.64435264,0.00024236,3]
[366265378,1750165855313,-3000.0,0.0002424,2]
[366265379,1750165855322,-460.0,0.00024246,6]
[366265380,1750165855331,-460.0,0.00024246,6]
[366265381,1750165855340,-1199.91,0.00024246,6]
[366265382,1750165855350,-460.0,0.00024246,6]
[366265383,1750165855359,-460.0,0.00024246,6]
[366265384,1750165855368,-460.0,0.00024246,6]
[366265385,1750165855377,-380.0,0.00024246,6]
[366265386,1750165855386,-322.43239032,0.00024246,6]
[366265387,1750165855397,-460.0,0.00024246,6]
[366265388,1750165855406,-460.0,0.00024246,6]
[366265389,1750165855416,-1136.55,0.00024246,6]
[366265390,1750165855425,-460.0,0.00024246,6]
[366265391,1750165855434,-460.0,0.00024246,6]
[366265392,1750165855443,-460.0,0.00024246,6]
[366265393,1750165855452,-460.0,0.00024246,6]
[366265394,1750165855461,-460.0,0.00024246,6]
[366265395,1750165855471,-370.0,0.00024246,6]
[366265396,1750165855480,-1653.26,0.00024246,2]
[366265397,1750165855489,-460.0,0.00024246,6]
[366265398,1750165855499,-878.72,0.00024246,6]
[366265399,1750165855508,-460.0,0.00024246,6]
[366265400,1750165855518,-406.71201565,0.00024246,6]
[366265401,1750165855527,-460.0,0.00024246,6]
[366265402,1750165855536,-460.0,0.00024246,6]
[366265403,1750165855546,-460.0,0.00024246,6]
[366265404,1750165855555,-460.0,0.00024246,6]
[366265405,1750165855565,-395.37249477,0.00024246,6]
[366265406,1750165855575,-1304.72,0.00024246,6]
[366265407,1750165855584,-460.0,0.00024246,6]
[366265408,1750165855593,-460.0,0.00024246,6]
[366265409,1750165855603,-267.54887307,0.00024246,6]
[366265410,1750165855612,-492.7130178,0.00024246,6]
[366265411,1750165855622,-460.0,0.00024246,6]
[366265412,1750165855631,-460.0,0.00024246,6]
[366265413,1750165855640,-151.0,0.00024246,7]
[366265414,1750165855650,-151.0,0.00024246,7]
[366265415,1750165855660,-228.11405207,0.00024246,6]
[366265416,1750165855669,-515.48,0.00024246,6]
[366265417,1750165855680,-222.224113,0.00024246,7]
[366265418,1750165855691,-222.224113,0.00024246,7]
[366265419,1750165855701,-460.0,0.00024246,6]
[366265420,1750165855711,-7113.65,0.00024246,6]
[366265421,1750165855720,-1801.7,0.00024246,6]
[366265422,1750165855730,-690.5,0.00024246,6]
[366265423,1750165855740,-219.113716,0.00024246,7]
[366265424,1750165855749,-151.0,0.00024246,7]
[366265425,1750165855759,-460.0,0.00024246,6]
[366265426,1750165855769,-460.0,0.00024246,6]
[366265427,1750165855778,-460.0,0.00024246,6]
[366265428,1750165855788,-460.0,0.00024246,6]
[366265429,1750165855797,-151.0,0.00024246,7]
[366265430,1750165855807,-460.0,0.00024246,6]
[366265431,1750165855897,-2451.9,0.00024246,6]
[366265432,1750165855907,-226.885135,0.00024246,7]
[366265433,1750165855917,-226.885135,0.00024246,7]
[366265434,1750165855927,-460.0,0.00024246,6]
[366265435,1750165855937,-1127.69,0.00024246,6]
[366265436,1750165855946,-975.09,0.00024246,6]
[366265437,1750165855956,-460.0,0.00024246,6]
[366265438,1750165855965,-460.0,0.00024246,6]
[366265439,1750165855975,-706.94,0.00024246,6]
[366265440,1750165855984,-460.0,0.00024246,6]
[366265441,1750165855994,-460.0,0.00024246,6]
[366265442,1750165856005,-151.0,0.00024246,7]
[366265443,1750165856015,-496.04,0.00024246,6]
[366265444,1750165856025,-848.76,0.00024246,6]
[366265445,1750165856035,-1401.3,0.00024246,6]
[366265446,1750165856044,-1042.16,0.00024246,6]
[366265447,1750165856053,-521.09,0.00024246,6]
[366265448,1750165856063,-6005.6,0.00024246,6]
[366265449,1750165856072,-460.0,0.00024246,6]
[366265450,1750165856081,-4967.53,0.00024246,6]
[366265451,1750165856090,-713.33,0.00024246,6]
[366265452,1750165856099,-1612.56,0.00024246,6]
[366265453,1750165856108,-460.0,0.00024246,6]
[366265454,1750165856117,-460.0,0.00024246,6]
[366265455,1750165856127,-5766.87,0.00024246,6]
[366265456,1750165856136,-1417.43,0.00024246,6]
[366265457,1750165856145,-460.0,0.00024246,6]
[366265458,1750165856157,-460.0,0.00024246,6]
[366265459,1750165856166,-460.0,0.00024246,6]
[366265460,1750165856175,-1181.76,0.00024246,6]
[366265461,1750165856184,-460.0,0.00024246,6]
[366265462,1750165856194,-460.0,0.00024246,6]
[366265463,1750165856204,-151.0,0.00024246,7]
[366265464,1750165856213,-2284.79,0.00024246,6]
[366265465,1750165856223,-669.9,0.00024246,6]
[366265466,1750165856233,-1703.81,0.00024246,6]
[366265467,1750165856242,-460.0,0.00024246,6]
[366265468,1750165856251,-460.0,0.00024246,6]
[366265469,1750165856261,-2229.99,0.00024246,6]
[366265470,1750165856271,-900.42,0.00024246,6]
[366265471,1750165856280,-327.86926509,0.00024246,6]
[366265472,1750165856289,-2189.19,0.00024246,6]
[366265473,1750165856299,-602.20951765,0.00024246,6]
[366265474,1750165856309,-601.12,0.00024246,6]
[366265475,1750165856318,-202.168273,0.00024246,7]
[366265476,1750165856329,-460.0,0.00024246,6]
[366265477,1750165856338,-202.168273,0.00024246,7]
[366265478,1750165856348,-645.19,0.00024246,6]
[366265479,1750165856358,-151.0,0.00024246,7]
[366265480,1750165856367,-918.85,0.00024246,6]
[366265481,1750165856377,-460.0,0.00024246,6]
[366265482,1750165856387,-460.0,0.00024246,6]
[366265483,1750165856398,-493.6320312,0.00024246,6]
[366265484,1750165856408,-862.99,0.00024246,6]
[366265485,1750165856417,-1155.02,0.00024246,6]
[366265486,1750165856427,-460.0,0.00024246,6]
[366265487,1750165856437,-6023.89,0.00024246,6]
[366265488,1750165856447,-460.0,0.00024246,6]
[366265489,1750165856456,-151.0,0.00024246,7]
[366265490,1750165856466,-1800.7,0.00024246,6]
[366265491,1750165856475,-469.35,0.00024246,6]
[366265492,1750165856487,-160.949276,0.00024246,2]
[366265493,1750165856497,-756.44,0.00024246,6]
[366265494,1750165856507,-340.0,0.00024246,6]
[366265495,1750165856517,-160.949276,0.00024246,2]
[366265496,1750165856527,-1375.04,0.00024246,6]
[366265497,1750165856537,-460.0,0.00024246,6]
[366265498,1750165856547,-585.43,0.00024246,6]
[366265499,1750165856558,-2895.33,0.00024246,6]
[366265500,1750165856567,-858.12,0.00024246,6]
[366265501,1750165856578,-151.0,0.00024246,7]
[366265502,1750165856587,-460.0,0.00024246,6]
[366265503,1750165856598,-151.0,0.00024246,7]
[366265504,1750165856608,-2033.31,0.00024246,6]
[366265505,1750165856618,-5921.4,0.00024246,6]
[366265506,1750165856628,-151.0,0.00024246,7]
[366265507,1750165856638,-4551.35,0.00024246,6]
[366265508,1750165856648,-503.91,0.00024246,6]
[366265509,1750165856658,-887.03,0.00024246,6]
[366265510,1750165856669,-1365.39,0.00024246,6]
[366265511,1750165856679,-151.0,0.00024246,7]
[366265512,1750165856688,-754.37,0.00024246,6]
[366265513,1750165856698,-608.13,0.00024246,6]
[366265514,1750165856708,-460.0,0.00024246,6]
[366265515,1750165856718,-4372.84,0.00024246,6]
[366265516,1750165856727,-1021.85,0.00024246,6]
[366265517,1750165856737,-1222.5,0.00024246,6]
[366265518,1750165856747,-260.0,0.00024246,6]
[366265519,1750165856757,-460.0,0.00024246,6]
[366265520,1750165856766,-1471.68,0.00024246,2]
[366265521,1750165856776,-6383.11,0.00024246,6]
[366265522,1750165856786,-2221.85,0.00024246,6]
[366265523,1750165856796,-3000.0,0.0002425,2]
[366265524,1750165856805,-151.0,0.00024258,7]
[366265525,1750165856815,-3000.0,0.0002426,2]
[366265526,1750165856825,-3000.0,0.0002427,2]
[366265527,1750165856836,-500.0,0.00024273,2]
[366265528,1750165856848,-500.0,0.00024273,2]
[366265529,1750165856858,-500.0,0.00024273,2]
[366265530,1750165856867,-500.0,0.00024273,2]
[366265531,1750165856877,-500.0,0.00024273,2]
[366265532,1750165856887,-500.0,0.00024273,2]
[366265533,1750165856896,-151.0,0.00024273,7]
[366265534,1750165856905,-151.0,0.00024273,7]
[366265535,1750165856916,-153.872336,0.00024273,7]
[366265536,1750165856926,-151.0,0.00024273,7]
[366265537,1750165856935,-151.274964,0.00024273,7]
[366265538,1750165856945,-151.0,0.00024273,7]
[366265539,1750165856954,-151.296424,0.00024273,7]
[366265540,1750165856964,-151.0,0.00024273,7]
[366265541,1750165856973,-460.0,0.00024273,6]
[366265542,1750165856983,-182.64296,0.00024273,7]
[366265543,1750165856993,-460.0,0.00024273,6]
[366265544,1750165857002,-1199.91,0.00024273,6]
[366265545,1750165857012,-460.0,0.00024273,6]
[366265546,1750165857022,-460.0,0.00024273,6]
[366265547,1750165857031,-460.0,0.00024273,6]
[366265548,1750165857126,-151.0,0.00024273,7]
[366265549,1750165857135,-460.0,0.00024273,6]
[366265550,1750165857145,-460.0,0.00024273,6]
[366265551,1750165857155,-151.0,0.00024273,7]
[366265552,1750165857165,-151.0,0.00024273,7]
[366265553,1750165857174,-151.0,0.00024273,7]
[366265554,1750165857184,-1136.55,0.00024273,6]
[366265555,1750165857194,-460.0,0.00024273,6]
[366265556,1750165857203,-460.0,0.00024273,6]
[366265557,1750165857213,-550.0,0.00024273,6]
[366265558,1750165857222,-460.0,0.00024273,6]
[366265559,1750165857232,-233.13868158,0.00024273,6]
[366265560,1750165857241,-1653.26,0.00024273,2]
[366265561,1750165857251,-460.0,0.00024273,6]
[366265562,1750165857261,-878.72,0.00024273,6]
[366265563,1750165857270,-460.0,0.00024273,6]
[366265564,1750165857279,-460.0,0.00024273,6]
[366265565,1750165857289,-460.0,0.00024273,6]
[366265566,1750165857299,-460.0,0.00024273,6]
[366265567,1750165857308,-460.0,0.00024273,6]
[366265568,1750165857317,-151.0,0.00024273,7]
[366265569,1750165857327,-151.0,0.00024273,7]
[366265570,1750165857337,-151.0,0.00024273,7]
[366265571,1750165857346,-1304.72,0.00024273,6]
[366265572,1750165857356,-460.0,0.00024273,6]
[366265573,1750165857365,-460.0,0.00024273,6]
[366265574,1750165857375,-460.0,0.00024273,6]
[366265575,1750165857384,-460.0,0.00024273,6]
[366265576,1750165857394,-515.48,0.00024273,6]
[366265577,1750165857404,-460.0,0.00024273,6]
[366265578,1750165857413,-7113.65,0.00024273,6]
[366265579,1750165857423,-1801.7,0.00024273,6]
[366265580,1750165857432,-690.5,0.00024273,6]
[366265581,1750165857442,-460.0,0.00024273,6]
[366265582,1750165857451,-460.0,0.00024273,6]
[366265583,1750165857460,-460.0,0.00024273,6]
[366265584,1750165857470,-460.0,0.00024273,6]
[366265585,1750165857479,-334.19170481,0.00024273,6]
[366265586,1750165857489,-2451.9,0.00024273,6]
[366265587,1750165857498,-399.51118234,0.00024273,6]
[366265588,1750165857696,-60.48881766,0.00024273,6]
[366265589,1750165857707,-1127.69,0.00024273,6]
[366265590,1750165857717,-975.09,0.00024273,6]
[366265591,1750165857727,-460.0,0.00024273,6]
[366265592,1750165857736,-460.0,0.00024273,6]
[366265593,1750165857746,-706.94,0.00024273,6]
[366265594,1750165857755,-460.0,0.00024273,6]
[366265595,1750165857765,-460.0,0.00024273,6]
[366265596,1750165857774,-496.04,0.00024273,6]
[366265597,1750165857784,-848.76,0.00024273,6]
[366265598,1750165857794,-1401.3,0.00024273,6]
[366265599,1750165857803,-1042.16,0.00024273,6]
[366265600,1750165857813,-521.09,0.00024273,6]
[366265601,1750165857823,-6005.6,0.00024273,6]
[366265602,1750165857832,-280.0,0.00024273,6]
[366265603,1750165857845,-4967.53,0.00024273,6]
[366265604,1750165857855,-713.33,0.00024273,6]
[366265605,1750165857864,-1612.56,0.00024273,6]
[366265606,1750165857873,-460.0,0.00024273,6]
[366265607,1750165857882,-460.0,0.00024273,6]
[366265608,1750165857892,-5766.87,0.00024273,6]
[366265609,1750165857902,-1417.43,0.00024273,6]
[366265610,1750165857912,-460.0,0.00024273,6]
[366265611,1750165857921,-460.0,0.00024273,6]
[366265612,1750165857931,-460.0,0.00024273,6]
[366265613,1750165857940,-1181.76,0.00024273,6]
[366265614,1750165857950,-334.453809,0.00024273,6]
[366265615,1750165857959,-460.0,0.00024273,6]
[366265616,1750165857969,-2284.79,0.00024273,6]
[366265617,1750165857978,-669.9,0.00024273,6]
[366265618,1750165857988,-1703.81,0.00024273,6]
[366265619,1750165857998,-460.0,0.00024273,6]
[366265620,1750165858008,-460.0,0.00024273,6]
[366265621,1750165858018,-2229.99,0.00024273,6]
[366265622,1750165858103,-900.42,0.00024273,6]
[366265623,1750165858114,-2189.19,0.00024273,6]
[366265624,1750165858124,-512.6992538,0.00024273,6]
[366265625,1750165858384,-459.8930705,0.0002073,2]
[366265626,1750165858394,-460.0,0.00024109,6]
[366265627,1750165858403,-500.0,0.00024109,6]
[366265628,1750165858412,-500.0,0.00024109,6]
[366265629,1750165858421,-500.0,0.00024109,6]
[366265630,1750165858431,-450.66971869,0.00024136,6]
[366265631,1750165858440,-460.0,0.00024164,6]
[366265632,1750165858449,-460.0,0.00024191,6]
[366265633,1750165858459,-460.0,0.00024219,6]
[366265634,1750165858468,-210.18673733,0.00024228,2]
[366265635,1750165858478,-460.0,0.00024246,6]
[366265636,1750165858487,-88.4207462,0.00024273,6]
[366265637,1750165858496,-568.25171518,0.00024273,6]
[366265638,1750165858506,-645.19,0.00024273,6]
[366265639,1750165858515,-918.85,0.00024273,6]
[366265640,1750165858525,-460.0,0.00024273,6]
[366265641,1750165858534,-460.0,0.00024273,6]
[366265642,1750165858544,-862.99,0.00024273,6]
[366265643,1750165858554,-1155.02,0.00024273,6]
[366265644,1750165858563,-460.0,0.00024273,6]
[366265645,1750165858577,-714.65389415,0.00024273,6]
[366265646,1750165859147,-2257.36121828,0.00023868,2]
[366265647,1750165859220,-767.34669071,0.00023868,2]
[366265648,1750165859232,-372.9841686,0.00023868,2]
[366265649,1750165859887,-1602.30792241,0.00023868,2]
[366265650,1750165859896,-500.0,0.00024109,6]
[366265651,1750165859905,-500.0,0.00024109,6]
[366265652,1750165859915,-500.0,0.00024109,6]
[366265653,1750165859924,-500.0,0.00024109,6]
[366265654,1750165859933,-500.0,0.00024109,6]
[366265655,1750165859942,-500.0,0.00024109,6]
[366265656,1750165859952,-500.0,0.00024109,6]
[366265657,1750165859961,-500.0,0.00024109,6]
[366265658,1750165859970,-500.0,0.00024109,6]
[366265659,1750165859979,-500.0,0.00024109,6]
[366265660,1750165859989,-418.57,0.00024109,6]
[366265661,1750165859998,-440.0,0.00024109,6]
[366265662,1750165860008,-460.0,0.00024109,6]
[366265663,1750165860017,-318.67747144,0.00024109,6]
[366265664,1750166019673,-200472.89678439,0.00025095,120]
[366265665,1750166019702,-156.0,0.00025095,120]
[366265666,1750166019732,-2997.0,0.00025095,120]
[366265667,1750166019760,-2045824.56635404,0.00025095,120]
[366265668,1750166019789,-1940.25420869,0.00025095,120]
[366265669,1750166019817,-5000.0,0.00025095,120]
[366265680,1750166081495,-166.283178,0.00019677,2]
[366265687,1750166105016,13070.3376605,0.00025107,120]
[366265702,1750166252730,-291.41053958,0.0001948,2]
[366265706,1750166421765,792.8813431,0.00019033,2]
[366265707,1750166458825,605.551283,0.00013699,2]
[366265708,1750166526978,300.0,0.00024658,120]
[366265709,1750166558505,10000.0,0.00019036,2]
[366265713,1750166595992,197.46939221,0.00018896,2]
[366265714,1750166616899,213.3145634,0.00018988,2]
[366265715,1750166628808,5000.0,0.00019111,2]
[366265717,1750166650299,951.4371821,0.00019036,2]
[366265719,1750166683208,666.0,0.00019036,2]
[366265726,1750166755471,500.0,0.00019,2]
[366265728,1750166760229,478.05574623,0.00019,2]
[366265729,1750166778881,150.0,0.00017,2]
[366265733,1750166812471,700.0,0.00024658,120]
[366265734,1750166831573,5000.0,0.00019111,2]
[366265735,1750166847319,3045.29048996,0.00019111,2]
[366265736,1750166847973,-300.0,0.00019111,2]
[366265739,1750166875159,2481.18462946,0.00018,2]
[366265740,1750166875194,4425.88017221,0.00018,2]
[366265741,1750166877329,-378.23402232,0.00019111,2]
[366265744,1750166899219,412.76841468,0.00010618,2]
[366265745,1750166901056,11317.70640293,0.000125,2]
[366265746,1750166910277,2073.71244699,0.000176,2]
[366265747,1750166910970,-222.04152509,0.00019111,2]
[366265748,1750166912013,196.71298683,0.00019,2]
[366265749,1750166912935,276.2540515,0.00014114,2]
[366265750,1750166915097,281.0754292,0.0001,2]
[366265752,1750166920681,1015.89009566,0.00017,2]
[366265753,1750166920706,6055.85509803,0.00017,2]
[366265754,1750166921554,-150.26498568,0.00019111,2]
[366265755,1750166922063,13944.14490197,0.00018,2]
[366265756,1750166922088,20000.0,0.00018,2]
[366265757,1750166922113,20000.0,0.00018,2]
[366265758,1750166922139,20000.0,0.00018,2]
[366265759,1750166922165,20000.0,0.00018,2]
[366265760,1750166922191,20000.0,0.00018,2]
[366265761,1750166922216,20000.0,0.00018,2]
[366265762,1750166922241,1942.4091227,0.00018,2]
[366265763,1750166923809,2149.56853655,0.00018,2]
[366265764,1750166925230,577.40022274,0.000149,2]
[366265771,1750166966841,15330.62211801,0.00018988,2]
[366265772,1750166966867,9569.37788199,0.00018988,2]
[366265773,1750166984567,200.03128008,0.00019078,2]
[366265777,1750166997203,10230.59083793,0.00018893,2]
[366265778,1750166997228,5667.87295917,0.00018893,2]
[366265779,1750166997939,-321.76597768,0.00019111,2]
[366265780,1750167003185,1072.30651077,0.00018,2]
[366265781,1750167006477,160.0,0.00025105,120]
[366265785,1750167029710,152.0,0.00025105,120]
[366265805,1750167032116,4566.1526116,0.00018892,2]
[366265833,1750167032379,-582.40299927,0.00019111,2]
[366265835,1750167032389,-198.014969,0.00019178,2]
[366265838,1750167032400,-497.13789582,0.0001938,2]
[366265841,1750167032410,-179.89206476,0.00019677,2]
[366265844,1750167032419,-172.6090249,0.00019791,2]
[366265847,1750167032430,-500.0,0.00019898,2]
[366265849,1750167032440,-257.93703689,0.00019987,2]
[366265851,1750167032450,-300.0,0.00019999,2]
[366265853,1750167032459,-300.0,0.00019999,2]
[366265855,1750167032471,-313.81641305,0.00019999,2]
[366265906,1750167034001,1502.9364558,0.00018892,2]
[366265908,1750167036311,1076.82088672,0.000189,2]
[366265909,1750167036409,5000.0,0.00019,2]
[366265943,1750167038473,-886.18358695,0.00019999,2]
[366265945,1750167038485,-1095.85541581,0.0002,2]
[366265947,1750167038495,-180.82423634,0.0002,2]
[366265949,1750167038505,-52650.9934138,0.0002,2]
[366265950,1750167038515,-607.412263,0.0002,2]
[366265951,1750167038525,-300.0,0.00020047,2]
[366265953,1750167038535,-500.0,0.00020049,2]
[366265955,1750167038546,-500.0,0.00020049,2]
[366265957,1750167038556,-500.0,0.00020049,2]
[366265959,1750167038566,-500.0,0.00020049,2]
[366265961,1750167038576,-500.0,0.00020049,2]
[366265963,1750167038587,-500.0,0.00020049,2]
[366265965,1750167038597,-500.0,0.00020049,2]
[366265968,1750167038607,-354.69109989,0.00020049,2]
[366265970,1750167038617,-500.0,0.00020049,2]
[366265972,1750167038627,-500.0,0.00020049,2]
[366265973,1750167038637,-500.0,0.00020049,2]
[366265974,1750167038647,-500.0,0.00020049,2]
[366265975,1750167038656,-500.0,0.00020049,2]
[366265976,1750167038667,-343.17983214,0.00020049,2]
[366265977,1750167038676,-500.0,0.00020049,2]
[366265978,1750167038686,-500.0,0.00020049,2]
[366265979,1750167038696,-500.0,0.00020049,2]
[366265980,1750167038706,-500.0,0.00020049,2]
[366265981,1750167038716,-500.0,0.00020049,2]
[366265982,1750167038726,-390.56497885,0.00020049,2]
[366265983,1750167038737,-500.0,0.00020049,2]
[366265984,1750167038747,-500.0,0.00020049,2]
[366265985,1750167038757,-500.0,0.00020049,2]
[366265986,1750167038767,-500.0,0.00020049,2]
[366265987,1750167038778,-500.0,0.00020049,2]
[366265988,1750167038788,-500.0,0.00020049,2]
[366265989,1750167038798,-500.0,0.00020049,2]
[366265990,1750167038808,-26053.506351,0.0002005,2]
[366265991,1750167038817,-900.296391,0.00020087,2]
[366265992,1750167038828,-605.551283,0.00020187,2]
[366265993,1750167038837,-500.0,0.0002035,2]
[366265994,1750167038847,-500.0,0.0002035,2]
[366265995,1750167038857,-500.0,0.0002035,2]
[366265996,1750167038866,-501.95007019,0.0002035,2]
[366265997,1750167038878,-500.0,0.0002035,2]
[366265998,1750167038888,-500.0,0.0002035,2]
[366265999,1750167038899,-500.0,0.00020366,2]
[366266000,1750167038908,-419.9166924,0.00020366,2]
[366266001,1750167038919,-500.0,0.0002045,2]
[366266002,1750167038929,-500.0,0.0002045,2]